bitfinex-derivatives/quotes_ETHF0:USTF0_20250502
["timestamp","ask_amount","ask_price","bid_price","bid_amount"]
[1746163405915,7.03671,1837.9,1837.8,13.74278]
[1746163406312,7.03671,1837.9,1837.8,15.49698]
[1746163407423,7.03671,1837.9,1837.8,10.49698]
[1746163408314,5.87754,1837.9,1837.8,10.49698]
[1746163418018,3.32669,1837.9,1837.8,10.49698]
[1746163420025,3.32669,1837.9,1837.8,8.74278]
[1746163420326,3.32669,1837.9,1837.8,7.92478]
[1746163424024,3.32669,1837.9,1837.8,3.2078]
[1746163424231,7.02269,1837.9,1837.8,3.2078]
[1746163424631,15.23049,1837.9,1837.6,3.62]
[1746163424821,1.6348,1837.8,1837.6,3.62]
[1746163425025,2.472,1837.8,1837.6,3.62]
[1746163425232,0.8362,1837.7,1837.6,3.62]
[1746163425532,2.471,1837.7,1837.6,3.62]
[1746163425928,7.471,1837.7,1837.4,4.29597]
[1746163426126,1.6348,1837.6,1837.4,7.91597]
[1746163427232,5.3308,1837.6,1837.4,7.91597]
[1746163427726,1.6342,1837.5,1837.4,7.91597]
[1746163428231,5.3302,1837.5,1837.4,7.91597]
[1746163433932,5.3302,1837.5,1837.4,8.74757]
[1746163434230,1.6342,1837.5,1837.4,8.74757]
[1746163436336,0.8362,1837.7,1837.6,1.0881]
[1746163436632,2.4387,1837.7,1837.6,4.2959]
[1746163441334,2.4387,1837.7,1837.6,5.0974]
[1746163442437,2.4387,1837.7,1837.6,1.0881]
[1746163442837,2.4387,1837.7,1837.6,4.2959]
[1746163443143,9.99599,1837.9,1837.8,1.08798]
[1746163443537,11.66979,1837.9,1837.8,1.08798]
[1746163445430,10.83849,1837.9,1837.8,4.29578]
[1746163445839,3.32669,1837.9,1837.8,6.00058]
[1746163448338,0.51405,1837.9,1837.8,11.00058]
[1746163448539,1e-05,1837.9,1837.8,11.00058]
[1746163448745,1e-05,1837.9,1837.8,51.80058]
[1746163450842,1e-05,1837.9,1837.8,46.80058]
[1746163451445,1e-05,1837.9,1837.8,52.73258]
[1746163454143,1e-05,1837.9,1837.8,57.73258]
[1746163454847,1.744,1838.5,1838.4,1.08763]
[1746163455046,1.744,1838.5,1838.4,7.88643]
[1746163455647,1.744,1838.5,1838.4,9.47313]
[1746163457144,5.44,1838.5,1838.4,7.88643]
[1746163459841,5.44,1838.5,1838.4,4.29543]
[1746163460047,5.44,1838.5,1838.4,3.591]
[1746163460048,10.44,1838.5,1838.4,3.591]
[1746163460641,10.44,1838.5,1838.2,1.08772]
[1746163460642,10.44,1838.5,1838.3,1.08768]
[1746163460844,1.6239,1838.4,1838.3,1.08768]
[1746163461038,5.3199,1838.4,1838.3,1.08768]
[1746163461244,10.3199,1838.4,1838.3,1.08768]
[1746163461443,5.3199,1838.4,1838.3,1.08768]
[1746163466253,1.6239,1838.4,1838.3,1.08768]
[1746163466446,1.6239,1838.4,1838.3,4.29548]
[1746163467053,1.6239,1838.4,1838.3,5.12128]
[1746163468555,1.6239,1838.4,1838.3,4.29548]
[1746163468751,1.6239,1838.4,1838.3,6.7988]
[1746163468952,1.6239,1838.4,1838.3,7.88648]
[1746163469255,5.3199,1838.4,1838.2,4.66071]
[1746163469456,1.6061,1838.3,1838.2,4.66071]
[1746163469753,3.3185,1838.3,1838.2,4.66071]
[1746163470156,7.0145,1838.3,1838.1,3.2078]
[1746163470348,1.7124,1838.2,1838.0,4.66085]
[1746163470749,2.80018,1838.2,1837.9,4.29571]
[1746163471157,1.7124,1838.1,1837.9,4.29571]
[1746163471758,0.8183,1838.0,1837.9,4.29571]
[1746163472156,4.5143,1838.0,1837.9,4.29571]
[1746163474252,9.5143,1838.0,1837.8,0.10882576]
[1746163474450,2.5182,1837.9,1837.8,0.10882576]
[1746163474651,2.5182,1837.9,1837.8,1.19680576]
[1746163475151,6.2142,1837.9,1837.8,1.19680576]
[1746163475359,6.2142,1837.9,1837.8,1.08798]
[1746163478948,5.3765,1837.9,1837.8,1.08798]
[1746163479154,5.3765,1837.9,1837.8,5.88218]
[1746163482251,1.6805,1837.9,1837.8,5.88218]
[1746163485168,0.8547,1838.2,1837.9,1.0879]
[1746163485464,1.7123,1838.1,1837.9,3.6549]
[1746163485661,1.7123,1838.1,1838.0,1.08786]
[1746163486165,5.4083,1838.1,1838.0,41.88786]
[1746163486765,5.4083,1838.1,1838.0,43.63476]
[1746163488969,6.09422261,1838.1,1838.0,43.63476]
[1746163490873,6.09422261,1838.1,1838.0,47.20776]
[1746163492071,6.09422261,1838.1,1838.0,45.46086]
[1746163504178,6.09422261,1838.1,1838.0,4.66086]
[1746163504483,11.09422261,1838.1,1837.9,1.0879]
[1746163504774,1.727,1838.0,1837.9,1.0879]
[1746163504979,2.41292261,1838.0,1837.9,1.0879]
[1746163505179,6.10892261,1838.0,1837.9,1.0879]
[1746163507179,11.94692261,1838.0,1837.9,1.0879]
[1746163507479,11.94692261,1838.0,1837.8,1.08797]
[1746163507778,2.5088,1837.9,1837.7,1.088]
[1746163507976,2.5621,1837.8,1837.7,1.08804]
[1746163508169,6.94402261,1837.8,1837.7,1.08804]
[1746163508574,6.94402261,1837.8,1837.6,4.63007]
[1746163508869,1.7378,1837.7,1837.6,4.63007]
[1746163509070,2.42372261,1837.7,1837.5,1.95203]
[1746163509273,0.7919,1837.6,1837.5,1.08816]
[1746163509480,2.5297,1837.6,1837.5,1.08816]
[1746163510279,6.91162261,1837.6,1837.4,7.83797]
[1746163510480,1.7378,1837.5,1837.4,7.83797]
[1746163511273,6.11972261,1837.5,1837.4,7.83797]
[1746163513284,6.11972261,1837.5,1837.4,6.7498]
[1746163513982,6.11972261,1837.5,1837.4,3.2078]
[1746163514175,7.20788261,1837.5,1837.4,3.2078]
[1746163514786,6.11972261,1837.5,1837.4,3.2078]
[1746163515282,7.20788261,1837.5,1837.4,3.2078]
[1746163515583,6.11972261,1837.5,1837.4,3.2078]
[1746163516589,6.11972261,1837.5,1837.4,4.29602]
[1746163517185,6.11972261,1837.5,1837.4,3.2078]
[1746163517386,7.20788261,1837.5,1837.4,3.2078]
[1746163517779,6.11972261,1837.5,1837.4,4.29602]
[1746163518174,6.11972261,1837.5,1837.4,1.08822]
[1746163521591,6.11972261,1837.5,1837.3,1.88324]
[1746163521793,1.703,1837.4,1837.3,1.88324]
[1746163522290,2.38892261,1837.4,1837.3,0.795]
[1746163522490,3.47717261,1837.4,1837.2,6.7498]
[1746163522791,2.5773,1837.3,1837.2,6.7498]
[1746163522979,2.5773,1837.3,1837.2,7.83814]
[1746163523183,6.2733,1837.3,1837.2,6.7498]
[1746163523385,6.95922261,1837.3,1837.2,6.7498]
[1746163523691,8.04750261,1837.3,1837.2,6.7498]
[1746163524690,8.04750261,1837.3,1837.2,3.542]
[1746163524894,6.95922261,1837.3,1837.2,4.63034]
[1746163525187,8.04750261,1837.3,1837.2,3.542]
[1746163525895,8.04750261,1837.3,1837.2,4.63034]
[1746163526997,6.95922261,1837.3,1837.2,4.63034]
[1746163529195,3.26322261,1837.3,1837.2,4.63034]
[1746163531098,6.95922261,1837.3,1837.2,3.542]
[1746163531402,8.04750261,1837.3,1837.2,3.542]
[1746163534302,8.04750261,1837.3,1837.2,4.63034]
[1746163536304,8.04750261,1837.3,1837.2,3.542]
[1746163538907,8.04750261,1837.3,1837.1,1.93116]
[1746163539095,1.752,1837.2,1837.1,1.93116]
[1746163539295,2.43792261,1837.2,1837.1,1.93116]
[1746163540205,6.13392261,1837.2,1837.1,1.93116]
[1746163540404,7.22226261,1837.2,1837.1,1.93116]
[1746163540904,7.22226261,1837.2,1837.1,0.8428]
[1746163543117,3.52626261,1837.2,1837.1,0.8428]
[1746163543720,2.43792261,1837.2,1837.1,0.8428]
[1746163544007,3.52626261,1837.2,1837.1,0.8428]
[1746163544609,2.43792261,1837.2,1837.1,1.9312]
[1746163545011,2.43792261,1837.2,1837.1,0.8428]
[1746163545610,2.43792261,1837.2,1837.1,1.9312]
[1746163547507,3.52626261,1837.2,1837.0,5.45431]
[1746163547709,1.6679,1837.1,1837.0,5.45431]
[1746163548110,1.6679,1837.1,1837.0,3.515]
[1746163548311,2.35382261,1837.1,1837.0,4.60345]
[1746163550712,2.35382261,1837.1,1837.0,1.08845]
[1746163551410,2.35382261,1837.1,1836.9,2.5154]
[1746163551411,2.35382261,1837.1,1836.9,3.60389]
[1746163551610,2.5812,1837.0,1836.8,1.08852]
[1746163551803,1.7351,1836.9,1836.7,9.48769]
[1746163552008,1.08857,1836.8,1836.7,7.5343]
[1746163552213,3.696,1836.8,1836.7,7.5343]
[1746163552413,4.38192261,1836.8,1836.7,7.5343]
[1746163552607,6.11702261,1836.8,1836.7,7.5343]
[1746163552806,6.11702261,1836.8,1836.7,5.41513]
[1746163553213,2.42102261,1836.8,1836.7,5.41513]
[1746163556106,6.11702261,1836.8,1836.7,5.41513]
[1746163556819,7.20559261,1836.8,1836.7,3.515]
[1746163557217,7.20559261,1836.8,1836.6,40.8]
[1746163557218,1.08863,1836.7,1836.6,40.8]
[1746163557413,3.20612261,1836.7,1836.6,41.88869]
[1746163557818,3.20612261,1836.7,1836.6,1.08869]
[1746163558219,6.90212261,1836.7,1836.6,1.08869]
[1746163559617,6.90212261,1836.7,1836.4,4.29657]
[1746163559822,6.90212261,1836.7,1836.4,1.08877]
[1746163559823,2.75381,1836.6,1836.4,1.08877]
[1746163560014,1.6651,1836.5,1836.4,1.08877]
[1746163560524,2.35102261,1836.5,1836.4,1.08877]
[1746163562122,2.35102261,1836.5,1836.3,45.25363]
[1746163562318,1.6393,1836.4,1836.3,45.25363]
[1746163562521,2.32522261,1836.4,1836.3,45.25363]
[1746163563529,2.32522261,1836.4,1836.3,44.1648]
[1746163563926,2.32522261,1836.4,1836.3,42.4095]
[1746163564124,4.21673261,1836.4,1836.3,0.8098]
[1746163564528,3.12792261,1836.4,1836.3,0.8098]
[1746163565030,3.12792261,1836.4,1836.3,1.89867]
[1746163565229,3.12792261,1836.4,1836.3,2.69557]
[1746163566920,3.12792261,1836.4,1836.2,44.0078]
[1746163567126,2.57743261,1836.4,1836.2,44.0078]
[1746163567325,1.48862261,1836.4,1836.2,45.0967]
[1746163567630,0.68592261,1836.3,1836.2,45.0967]
[1746163567826,0.68592261,1836.3,1836.2,4.2967]
[1746163569927,0.68592261,1836.3,1836.2,5.9037]
[1746163581346,0.68592261,1836.3,1836.2,4.2967]
[1746163582045,0.68592261,1836.3,1836.2,6.0283]
[1746163582552,0.68592261,1836.3,1836.2,46.8283]
[1746163585152,1.5838,1836.6,1836.5,1.08875]
[1746163585353,1.5838,1836.6,1836.5,4.29655]
[1746163585845,1.5838,1836.6,1836.5,5.92795]
[1746163586855,10.28983966,1836.8,1836.7,1.08863]
[1746163587046,11.87363966,1836.8,1836.7,1.08863]
[1746163587555,11.02723966,1836.8,1836.7,1.95113]
[1746163587755,11.02723966,1836.8,1836.7,3.58253]
[1746163587954,9.44343966,1836.8,1836.7,3.58253]
[1746163588355,3.60543966,1837.0,1836.9,1.08851]
[1746163588549,3.60543966,1837.0,1836.9,4.29631]
[1746163588749,5.21793966,1837.0,1836.9,4.29631]
[1746163588954,5.21793966,1837.0,1836.9,5.08761]
[1746163590259,6.03473966,1837.0,1836.9,5.08761]
[1746163590560,6.03473966,1837.0,1836.9,3.2078]
[1746163590855,11.87273966,1837.0,1836.7,3.516]
[1746163591059,2.4979,1836.9,1836.6,5.47056]
[1746163591257,1.6631,1836.8,1836.7,1.08863]
[1746163593064,1.6631,1836.8,1836.6,5.47056]
[1746163593255,0.86,1836.7,1836.6,5.47056]
[1746163593759,2.5231,1836.7,1836.6,4.60466]
[1746163599561,2.5231,1836.7,1836.6,3.516]
[1746163599861,2.5231,1836.7,1836.6,4.60469]
[1746163600061,2.5231,1836.7,1836.6,3.516]
[1746163600263,2.5231,1836.7,1836.6,4.60469]
[1746163600563,3.60543966,1836.8,1836.7,1.08863]
[1746163600760,3.60543966,1836.8,1836.7,5.99063]
[1746163601065,3.60543966,1836.8,1836.7,7.68793]
[1746163603869,7.02211401,1836.9,1836.7,7.68793]
[1746163603870,1.6362,1836.9,1836.8,1.08857]
[1746163604069,1.6362,1836.9,1836.8,2.75077]
[1746163604368,1.6362,1836.9,1836.8,1.6622]
[1746163604563,2.72472,1836.9,1836.7,4.902]
[1746163604770,0.7922,1836.8,1836.7,4.0819]
[1746163604970,2.4417,1836.8,1836.7,4.0819]
[1746163605268,2.4417,1836.8,1836.7,5.17053]
[1746163606966,1.6495,1836.8,1836.7,6.82063]
[1746163610271,0.8761,1837.0,1836.9,1.08851]
[1746163610459,2.5289,1837.0,1836.9,1.08851]
[1746163613774,2.5289,1837.0,1836.8,3.57082]
[1746163614078,1.7542,1836.9,1836.8,1.89072]
[1746163616473,1.7542,1836.9,1836.8,3.49872]
[1746163617874,3.60543966,1837.2,1837.0,1.08845]
[1746163618073,5.26683966,1837.2,1837.1,0.8659]
[1746163618273,3.60543966,1837.2,1837.1,0.8659]
[1746163618775,3.60543966,1837.2,1837.1,1.9543]
[1746163619475,3.60543966,1837.2,1837.1,2.7902]
[1746163621378,13.49603966,1837.3,1837.2,1.08834]
[1746163623581,14.58433966,1837.3,1837.1,2.79014]
[1746163623781,14.58433966,1837.3,1836.9,6.7218]
[1746163623782,1.08834,1837.2,1836.9,6.7218]
[1746163624075,1.08834,1837.2,1837.0,1.0884]
[1746163624379,0.8645,1837.1,1837.0,1.0884]
[1746163624577,1.9529,1837.1,1837.0,1.0884]
[1746163624879,1.9529,1837.1,1837.0,1.08845]
[1746163625775,5.1607,1837.1,1837.0,1.08845]
[1746163625982,2.72115,1837.0,1836.4,3.2078]
[1746163626184,3.2078,1836.8,1836.5,1.08873]
[1746163626382,1.95315,1836.7,1836.5,1.0887]
[1746163626581,1.7094,1836.7,1836.4,4.29659]
[1746163626781,1.08875,1836.5,1836.4,4.29659]
[1746163627083,6.92673,1836.6,1836.4,4.29659]
[1746163628083,1.08875,1836.5,1836.4,3.2078]
[1746163628285,1.08875,1836.5,1836.3,1.08885]
[1746163628477,1.6707,1836.4,1836.3,1.08882]
[1746163628678,2.75951,1836.4,1836.2,9.48118]
[1746163628883,3.55241,1836.4,1836.2,7.80868]
[1746163629184,1.6707,1836.3,1836.2,48.60868]
[1746163630683,1.6707,1836.3,1835.9,4.60109]
[1746163630881,1.08902,1836.1,1835.8,2.74705]
[1746163631077,1.6121,1836.0,1835.9,40.8]
[1746163631281,2.4745,1836.0,1835.9,40.8]
[1746163631582,8.3125,1836.0,1835.7,3.2078]
[1746163631776,8.3125,1836.0,1835.6,3.2078]
[1746163631777,1.08919,1835.8,1835.6,3.2078]
[1746163631989,1.6121,1835.7,1835.5,4.60233]
[1746163632188,9.9082,1836.0,1835.4,4.8595]
[1746163632189,9.9082,1836.0,1835.4,3.2078]
[1746163632387,2.70123,1835.9,1835.5,2.74101]
[1746163632597,1.6121,1835.8,1835.7,1.08923]
[1746163632787,6.7004,1836.0,1835.8,1.08912]
[1746163632991,8.3125,1836.0,1835.8,2.74082]
[1746163633698,8.3125,1836.0,1835.8,6.25382]
[1746163634200,1.5928,1835.9,1835.8,6.25382]
[1746163636395,1.5928,1835.9,1835.8,9.46162]
[1746163636901,1.5928,1835.9,1835.8,14.46162]
[1746163637103,5.838,1836.1,1836.0,1.08905]
[1746163637400,1.7009,1836.2,1836.1,1.08899]
[1746163637600,1.7009,1836.2,1836.1,1.91249]
[1746163637802,1.7009,1836.2,1836.1,3.64479]
[1746163637994,1.7009,1836.2,1836.1,7.15779]
[1746163643502,6.6437,1836.5,1836.2,2.72228]
[1746163643703,6.6437,1836.5,1836.4,1.08881]
[1746163643902,5.838,1836.5,1836.4,1.08881]
[1746163645008,5.838,1836.5,1836.4,3.70001]
[1746163645498,1.719,1836.6,1836.4,2.6112]
[1746163645805,4.012,1836.8,1836.7,1.08863]
[1746163645806,0.8042,1836.8,1836.7,1.08863]
[1746163647203,2.4346,1836.8,1836.7,1.08863]
[1746163647703,1.6304,1836.8,1836.7,1.08863]
[1746163647891,1.6304,1836.8,1836.7,3.51203]
[1746163658506,5.838,1836.9,1836.8,1.08857]
[1746163658702,5.838,1836.9,1836.8,2.82617]
[1746163659616,7.5574,1836.9,1836.8,2.82617]
[1746163659814,7.5574,1836.9,1836.8,43.62617]
[1746163660014,7.5574,1836.9,1836.8,41.88857]
[1746163662614,1.7194,1836.9,1836.8,41.88857]
[1746163664508,1.7194,1836.9,1836.8,43.60977]
[1746163665215,1.7194,1836.9,1836.8,46.81757]
[1746163665418,9.8396,1837.1,1837.0,1.08845]
[1746163667117,11.4776,1837.1,1837.0,1.08845]
[1746163667511,1.638,1837.1,1837.0,1.08845]
[1746163667913,1.638,1837.1,1837.0,4.29625]
[1746163668219,5.838,1837.3,1837.2,1.08834]
[1746163668414,1.638,1837.3,1837.2,1.08834]
[1746163668920,1.638,1837.3,1837.2,1.91694]
[1746163669214,5.334,1837.3,1837.2,1.91694]
[1746163672522,5.334,1837.3,1837.2,3.56774]
[1746163675325,5.334,1837.3,1837.2,44.36774]
[1746163682931,0.9571,1837.3,1837.2,52.57554]
[1746163683229,5.838,1837.6,1837.5,1.08816]
[1746163683429,5.838,1837.6,1837.5,7.80596]
[1746163684125,9.534,1837.6,1837.5,10.34596]
[1746163684525,11.2392,1837.6,1837.5,10.34596]
[1746163684722,5.4012,1837.6,1837.5,10.34596]
[1746163685929,3.696,1837.6,1837.5,10.34596]
[1746163687134,5.23123966,1837.7,1837.6,1.0881]
[1746163687524,5.23123966,1837.7,1837.6,2.7856]
[1746163688127,8.92723966,1837.7,1837.6,2.7856]
[1746163688433,8.92723966,1837.7,1837.6,1.0881]
[1746163688731,5.3218,1837.7,1837.6,4.5961]
[1746163688926,5.3218,1837.7,1837.6,6.3473]
[1746163689229,2.557,1837.9,1837.8,1.08798]
[1746163690132,6.253,1837.9,1837.8,1.08798]
[1746163691034,11.253,1837.9,1837.6,3.508]
[1746163691234,1.08804,1837.7,1837.6,3.508]
[1746163691431,3.66523,1837.8,1837.6,3.508]
[1746163691636,2.83944,1837.7,1837.5,4.29596]
[1746163691835,1.7514,1837.6,1837.5,4.29596]
[1746163692032,1.7514,1837.6,1837.0,44.308]
[1746163692033,1.08817,1837.5,1837.0,44.308]
[1746163692238,7.5894,1837.4,1837.2,1.08831]
[1746163692536,1.7514,1837.3,1837.2,1.08831]
[1746163692725,2.5613,1837.3,1837.2,1.08831]
[1746163693130,17.0953,1837.3,1837.1,1.08836]
[1746163693332,1.7514,1837.2,1837.1,1.08836]
[1746163693929,1.7514,1837.2,1837.0,1.08842]
[1746163694135,0.8524,1837.1,1837.0,1.08842]
[1746163694531,2.4461,1837.1,1837.0,1.08842]
[1746163695638,2.4461,1837.1,1836.9,1.08847]
[1746163695843,1.5937,1837.0,1836.9,1.08847]
[1746163696340,1.5937,1837.0,1836.8,40.8]
[1746163696341,1.5937,1837.0,1836.8,41.88853]
[1746163696529,0.8206,1836.9,1836.8,1.08853]
[1746163696740,0.8206,1836.9,1836.8,1.08857]
[1746163696937,2.4143,1836.9,1836.8,1.08857]
[1746163700542,2.4143,1836.9,1836.7,10.35162]
[1746163700735,1.625,1836.8,1836.7,8.67632]
[1746163700937,1.625,1836.8,1836.7,6.7158]
[1746163703441,1.625,1836.8,1836.7,7.80443]
[1746163703741,1.625,1836.8,1836.7,6.7158]
[1746163703941,1.625,1836.8,1836.7,7.80443]
[1746163711647,5.838,1837.0,1836.9,1.08851]
[1746163711848,7.4729,1837.0,1836.9,1.08851]
[1746163713450,7.4729,1837.0,1836.9,2.67541]
[1746163714254,7.4729,1837.0,1836.9,5.88321]
[1746163715144,5.838,1837.0,1836.9,5.88321]
[1746163715648,1.6531,1837.2,1837.1,1.0884]
[1746163717448,1.6531,1837.2,1837.1,1.9055]
[1746163717648,1.6531,1837.2,1837.1,2.718]
[1746163718249,5.3491,1837.2,1837.1,2.718]
[1746163718847,5.3491,1837.2,1837.1,4.4073]
[1746163732460,3.696,1837.2,1837.1,4.4073]
[1746163733159,1.753,1837.4,1837.3,1.08828]
[1746163734159,5.449,1837.4,1837.3,1.08828]
[1746163743265,3.696,1837.4,1837.3,6.25918]
[1746163749378,3.696,1837.4,1837.3,11.25918]
[1746163750382,3.696,1837.4,1837.3,6.25918]
[1746163757381,2.17089,1837.4,1837.3,6.25918]
[1746163758185,1.6609,1837.6,1837.5,1.08816]
[1746163758386,1.6609,1837.6,1837.5,4.29596]
[1746163758985,1.6609,1837.6,1837.5,5.94176]
[1746163760084,5.3569,1837.6,1837.5,5.94176]
[1746163761282,5.3569,1837.6,1837.5,46.74176]
[1746163761788,3.696,1837.6,1837.5,46.74176]
[1746163762486,5.4095,1837.6,1837.5,46.74176]
[1746163762986,5.4095,1837.6,1837.5,45.09596]
[1746163764691,5.4095,1837.6,1837.5,46.78396]
[1746163765292,1.99884,1837.6,1837.5,46.78396]
[1746163766384,1.7398,1837.8,1837.7,1.08804]
[1746163766585,1.7398,1837.8,1837.7,7.80084]
[1746163767079,5.4358,1837.8,1837.7,9.49014]
[1746163770393,3.60543966,1838.2,1838.1,1.0878]
[1746163770692,3.60543966,1838.2,1838.1,7.8006]
[1746163770693,1.28078966,1838.2,1838.1,7.8006]
[1746163770899,9.66e-06,1838.2,1838.1,48.6006]
[1746163771099,9.66e-06,1838.2,1838.1,50.2277]
[1746163771395,9.66e-06,1838.2,1838.1,49.00490595]
[1746163771591,0.79150966,1838.2,1838.1,49.00490595]
[1746163772187,4.48750966,1838.2,1838.1,49.00490595]
[1746163773401,6.18290966,1838.2,1838.1,49.00490595]
[1746163773608,6.18290966,1838.2,1838.1,50.63200595]
[1746163774295,6.1829,1838.2,1838.1,50.63200595]
[1746163775089,6.1829,1838.2,1838.1,49.00490595]
[1746163775288,6.1829,1838.2,1838.1,48.6006]
[1746163775698,6.1829,1838.2,1838.1,4.5928]
[1746163776200,11.1829,1838.2,1838.0,41.88782]
[1746163776402,2.4955,1838.1,1838.0,45.39186]
[1746163776903,2.4955,1838.1,1838.0,4.59186]
[1746163777090,6.1915,1838.1,1838.0,4.59186]
[1746163777292,6.1915,1838.1,1838.0,45.39186]
[1746163778802,11.1915,1838.1,1838.0,41.88786]
[1746163779698,11.1915,1838.1,1838.0,1.08786]
[1746163780705,6.1915,1838.1,1838.0,1.08786]
[1746163785911,5.3171,1838.1,1838.0,1.08786]
[1746163789609,5.3171,1838.1,1838.0,4.29566]
[1746163797816,5.3171,1838.1,1838.0,1.08786]
[1746163811824,5.3171,1838.1,1838.0,4.58686]
[1746163820031,3.696,1838.1,1838.0,4.58686]
[1746163820530,5.3937,1838.1,1838.0,4.58686]
[1746163822635,6.08724252,1838.1,1838.0,4.58686]
[1746163824842,11.47315653,1838.1,1838.0,4.58686]
[1746163829342,7.77715653,1838.1,1838.0,4.58686]
[1746163829544,7.77715653,1838.1,1838.0,7.79466]
[1746163830444,6.07945653,1838.1,1838.0,7.79466]
[1746163830645,3.68224653,1838.1,1838.0,12.79466]
[1746163831143,3.68224653,1838.1,1838.0,16.49066]
[1746163831338,3.68224653,1838.1,1838.0,11.49066]
[1746163832449,2.31923653,1838.1,1838.0,11.49066]
[1746163834438,0.92203653,1838.1,1838.0,11.49066]
[1746163834645,6.70483367,1838.2,1838.1,1.0878]
[1746163834844,6.70483367,1838.2,1838.1,4.4208]
[1746163835046,1.6444,1838.4,1838.3,1.08768]
[1746163835240,1.6444,1838.4,1838.3,7.79448]
[1746163835845,6.40777367,1838.7,1838.4,2.71903]
[1746163836047,8.98797367,1838.7,1838.6,1.08751]
[1746163836247,7.27267367,1838.7,1838.6,1.08751]
[1746163836747,7.27267367,1838.7,1838.6,4.58651]
[1746163836949,6.39737367,1838.7,1838.6,4.58651]
[1746163837146,5.53247367,1838.7,1838.6,6.31241]
[1746163838449,5.838,1838.9,1838.8,1.08739]
[1746163838650,7.5431,1839.0,1838.7,2.4735]
[1746163838944,7.5431,1839.0,1838.9,1.08733]
[1746163840446,1.7051,1839.0,1838.9,1.08733]
[1746163841038,5.4011,1839.0,1838.9,1.08733]
[1746163841548,5.4011,1839.0,1838.9,41.88733]
[1746163841750,5.4011,1839.0,1838.9,45.38233]
[1746163842253,1.7051,1839.0,1838.9,45.38233]
[1746163849155,3.374,1839.0,1838.9,45.38233]
[1746163854252,2.4987,1839.0,1838.9,45.38233]
[1746163854758,2.4987,1839.0,1838.9,44.295]
[1746163854959,2.4987,1839.0,1838.9,45.38233]
[1746163857663,1.6689,1839.0,1838.9,45.38233]
[1746163857857,1.6689,1839.0,1838.9,47.03223]
[1746163858259,1.6689,1839.0,1838.9,50.72823]
[1746163858461,9.0458,1839.3,1838.9,54.6409]
[1746163858660,3.2078,1839.3,1839.2,1.08715]
[1746163859055,4.8388,1839.3,1839.2,1.08715]
[1746163859958,4.8388,1839.3,1839.2,4.58215]
[1746163860358,4.8388,1839.3,1839.2,3.495]
[1746163861458,5.92589,1839.3,1839.2,3.495]
[1746163861668,4.8388,1839.3,1839.2,3.495]
[1746163861972,5.92589,1839.3,1839.2,3.495]
[1746163862264,15.45989,1839.3,1839.2,3.495]
[1746163862866,14.3728,1839.3,1839.2,4.58215]
[1746163863968,14.3728,1839.3,1839.1,2.4198]
[1746163864268,1.6924,1839.2,1839.1,3.50701]
[1746163864867,9.0458,1839.3,1839.2,1.08715]
[1746163865067,10.7382,1839.3,1839.2,2.69645]
[1746163867470,7.5304,1839.3,1839.2,2.69645]
[1746163867863,5.838,1839.3,1839.2,5.90425]
[1746163868059,4.29471,1839.7,1839.3,1.08705]
[1746163868060,1.08692,1839.6,1839.3,1.08705]
[1746163868364,1.6875,1839.6,1839.4,1.89172]
[1746163868565,1.6875,1839.6,1839.4,2.73992]
[1746163868764,1.6875,1839.6,1839.5,1.08698]
[1746163868964,2.77442,1839.6,1839.4,4.452]
[1746163869168,2.77442,1839.6,1839.4,3.365]
[1746163869369,1.6875,1839.5,1839.4,3.365]
[1746163869562,2.77448,1839.5,1839.4,3.365]
[1746163869762,1.6875,1839.5,1839.4,3.365]
[1746163870170,5.3835,1839.5,1839.4,3.365]
[1746163870473,6.47048,1839.5,1839.4,3.365]
[1746163870671,6.47048,1839.5,1839.4,4.45203]
[1746163870868,6.47048,1839.5,1839.3,4.58205]
[1746163871169,2.5113,1839.4,1839.3,4.58205]
[1746163872065,3.59833,1839.4,1839.3,3.495]
[1746163872259,6.2073,1839.4,1839.3,4.58209]
[1746163873373,3.696,1839.4,1839.3,4.58209]
[1746163873669,3.696,1839.4,1839.3,6.29959]
[1746163874173,2.5316,1839.6,1839.5,1.08698]
[1746163874365,0.8238,1839.6,1839.5,1.08698]
[1746163874565,1.91075,1839.6,1839.3,5.2125]
[1746163874765,1.08698,1839.5,1839.3,6.29957]
[1746163875167,1.91076,1839.6,1839.3,6.29957]
[1746163875372,1.08699,1839.5,1839.3,6.29957]
[1746163875672,1.08699,1839.5,1839.3,4.58207]
[1746163876067,4.78299,1839.5,1839.3,4.58207]
[1746163876274,1.08703,1839.4,1839.3,3.495]
[1746163876873,1.08703,1839.4,1839.3,4.58209]
[1746163877272,4.78303,1839.4,1839.3,3.495]
[1746163878575,4.78303,1839.4,1839.3,4.58209]
[1746163879579,4.78303,1839.4,1839.3,3.495]
[1746163880477,4.78303,1839.4,1839.3,4.58209]
[1746163882182,4.78303,1839.4,1839.3,3.495]
[1746163882678,4.78303,1839.4,1839.0,3.2078]
[1746163882679,9.62142,1839.4,1839.0,1.08722]
[1746163882881,1.08721,1839.1,1839.0,4.57822]
[1746163883076,1.6593,1839.3,1839.0,4.57822]
[1746163883077,2.74641,1839.3,1839.2,1.08715]
[1746163883478,0.8668,1839.3,1839.2,1.08715]
[1746163883675,1.95389,1839.3,1839.2,1.08715]
[1746163883881,0.8668,1839.3,1839.2,2.75305]
[1746163884077,1.08708,1839.4,1839.2,2.75305]
[1746163884283,1.08708,1839.4,1839.3,1.6659]
[1746163884679,1.51768705,1839.4,1839.3,1.6659]